Cogmind - Beta 15 @@@ ROGUE MODE // 2025.06.27 @ 19:32:22 Player: LoftTara Result: Destroyed by Alpha 7 with Multirail Performance ------------- Evolutions (7) 3500 Regions Visited (18) 3600 Robots Destroyed (228) 1140 Value Destroyed (10761) 10761 Prototype IDs (15) 300 Alien Tech Used (0) 0 Bonus (5304) 5304 TOTAL SCORE: 24605 Bonus ------- High Alert Combat Kills 255 Follower Combat Kills 1446 Met Data Miner 300 Met R17 at Cetus 500 Met R17 at Research 2000 Scanned by Researcher 500 Acquired SGEMP 2000 Friendly Fire -1697 Cogmind --------- Core Integrity 0/1300 Matter 293/300 Energy 150/150 System Corruption 35% Temperature Cool (0) Movement Core (250) Ox4 Location -3/Testing Parts ------- > --- POWER (2) -------- Micro Antimatter Reactor > --- PROPULSION (4) --- (None) > --- UTILITY (10) ----- Structural Scanner Improved Targeting Computer Improved Weapon Cycler Centrium Light Armor Plating > --- WEAPON (5) ------- (None) > --- INVENTORY (5) ---- Light Ion Engine SGEMP Prototype Peak State ------------ > --- POWER ------------ Antimatter Reactor Quantum Reactor > --- PROPULSION ------- Centrium Heavy Treads Centrium Heavy Treads > --- UTILITY ---------- Advanced Heat Sink Advanced Heat Sink High-capacity Storage Unit Targeting Computer Advanced Targeting Computer Kinecellerator Centrium Medium Armor Plating Centrium Medium Armor Plating Advanced Force Field Mini Drone Bay > --- WEAPON ----------- Matter Neutralizer Advanced KE Penetrator Advanced KE Penetrator Hardcell Cannon Heavy Gauss Cannon > --- INVENTORY -------- Antimatter Reactor Centrium Leg Centrium Leg Advanced Heat Sink Advanced Heat Sink Advanced Coolant Injector Advanced Target Analyzer Improved Weapon Cycler Improved Transmission Jammer Improved Phase Shifter Heavy Armor Plating Improved Medium Armor Plating Improved Medium Armor Plating Improved Medium Armor Plating Improved Heavy Armor Plating Advanced Shield Generator Heavy Phase Cannon Tesla Bomb Launcher [Rating: 151] Favorites ----------- Power Antimatter Reactor Engine Improved Deuterium Engine Power Core Nuclear Core Reactor Antimatter Reactor Propulsion Aluminum Leg Treads Centrium Heavy Treads Leg Aluminum Leg Hover Unit Aerolev Unit Utility Advanced Heat Sink Device Advanced Heat Sink Storage High-capacity Storage Unit Processor Advanced Targeting Computer Protection Centrium Medium Armor Plating Weapon Advanced KE Penetrator Energy Gun Quantum Rifle Energy Cannon Heavy Phase Cannon Ballistic Gun Advanced KE Penetrator Ballistic Cannon Hardcell Cannon Launcher Heavy Missile Launcher Piercing Weapon Spear Build | -11 -10 -9 -8 -7 -6 -6 -6 -6 -6 -5 -5 -5 -5 -4 -4 -4 -3 -3 ------- Run | Yrd Mat Mat Mat Fac Fac Was Fac Low Dat Pro Fac Ext Cet Fac Upp Upp Res Tes Slots Evolved 14 | . . 2 2 2 2 . . . . . 2 . . 2 . . 2 . Power 1 | . . . . . 1 . . . . . . . . . . . . . Propulsion 2 | . . 2 . . . . . . . . . . . . . . . . Utility 8 | . . . 1 2 1 . . . . . 1 . . 1 . . 2 . Weapon 3 | . . . 1 . . . . . . . 1 . . 1 . . . . Parts Attached 187 | 6 2 9 10 38 2 1 2 . . 4 10 10 15 11 5 . 22 40 Power 25 | 1 . . 1 5 1 1 1 . . . . 1 2 2 1 . 2 7 Engine 6 | 1 . . . 3 . . 1 . . . . . . . . . . 1 Core 5 | . . . 1 2 1 . . . . . . 1 . . . . . . Reactor 14 | . . . . . . 1 . . . . . . 2 2 1 . 2 6 Propulsion 45 | 2 . 6 3 12 . . . . . . 9 1 4 . 1 . 6 1 Treads 9 | . . . . . . . . . . . 5 . 2 . 1 . . 1 Leg 35 | 2 . 6 3 11 . . . . . . 4 1 2 . . . 6 . Wheel . | . . . . . . . . . . . . . . . . . . . Hover 1 | . . . . 1 . . . . . . . . . . . . . . Flight . | . . . . . . . . . . . . . . . . . . . Utility 57 | 1 1 1 2 10 1 . . . . 1 1 3 3 5 1 . 11 16 Device 34 | . 1 1 1 4 1 . . . . 1 . 1 2 4 . . 8 10 Storage 2 | 1 . . . 1 . . . . . . . . . . . . . . Processor 8 | . . . . 3 . . . . . . 1 1 . . . . 2 1 Hackware . | . . . . . . . . . . . . . . . . . . . Protection 13 | . . . 1 2 . . . . . . . 1 1 1 1 . 1 5 Artifact . | . . . . . . . . . . . . . . . . . . . Weapon 60 | 2 1 2 4 11 . . 1 . . 3 . 5 6 4 2 . 3 16 Energy Gun 23 | . 1 1 1 2 . . 1 . . . . 2 1 1 . . 1 12 Energy Cannon 9 | . . . 1 1 . . . . . 1 . 1 1 . 1 . 1 2 Ballistic Gun 16 | 2 . 1 1 3 . . . . . 1 . 1 4 1 . . . 2 Ballistic Cannon 5 | . . . . 2 . . . . . . . . . 2 . . 1 . Launcher 4 | . . . 1 . . . . . . 1 . 1 . . 1 . . . Special Weapon . | . . . . . . . . . . . . . . . . . . . Impact Weapon . | . . . . . . . . . . . . . . . . . . . Slashing Weapon . | . . . . . . . . . . . . . . . . . . . Piercing Weapon 3 | . . . . 3 . . . . . . . . . . . . . . Special Melee Weapon . | . . . . . . . . . . . . . . . . . . . Unidentified Prototypes 14 | . . . . 3 . . . . . . . . 4 . 1 . 2 4 Parts Lost 100 | . . . 2 11 . . . . . 2 . 8 7 9 4 . 7 50 Power 14 | . . . . 3 . . . . . . . 1 . 1 1 . 1 7 Propulsion 12 | . . . . 4 . . . . . 1 . . 5 . 1 . . 1 Utility 37 | . . . 1 3 . . . . . . . 2 1 4 2 . 3 21 Weapon 37 | . . . 1 1 . . . . . 1 . 5 1 4 . . 3 21 Highest Loss Streak 9 | . . . 1 3 . . . . . 2 . 4 7 3 2 . 4 9 To Critical Strikes 3 | . . . 1 . . . . . . . . . . . . . . 2 Average Backups 13 | 2 5 7 6 13 16 17 17 14 14 13 13 16 16 15 16 15 16 6 Power 1 | . 1 1 1 1 1 1 2 2 2 2 2 2 2 1 1 1 1 . Propulsion 1 | . 2 1 1 2 3 3 2 1 1 . . 2 1 1 . . 1 . Utility 7 | . . 2 3 4 6 7 7 7 7 7 8 9 10 10 11 12 10 3 Weapon 2 | . 1 1 . 5 6 6 5 4 4 3 2 1 2 1 2 2 3 1 Tool/Special . | . . . . . . . . . . . . . . . . . . . Unused Backups 36 | . . 5 2 2 . . 3 . . . 2 . 3 10 . . 8 1 Power 3 | . . 1 . 1 . . . . . . . . . 1 . . . . Propulsion 9 | . . 3 . . . . . . . . 2 . 1 1 . . 1 1 Utility 15 | . . 1 1 . . . 1 . . . . . 2 6 . . 4 . Weapon 8 | . . . . 1 . . 2 . . . . . . 2 . . 3 . Tool/Special 1 | . . . 1 . . . . . . . . . . . . . . . Average Slot Usage (%) 90 | . 90 89 99 95 99 100 100 100 100 97 94 99 88 88 88 89 87 74 Engine 2 | . 14 11 1 3 . . 2 6 6 6 5 5 . . . . . . Core 1 | . . . 7 3 13 11 3 . . . . 2 . . . . . . Reactor 5 | . . . . . . 1 6 6 6 6 5 2 9 9 9 10 9 7 Treads 3 | . . . . . . . . . . . 10 . 8 10 10 10 2 . Leg 14 | . 28 34 35 29 26 26 26 26 26 23 6 22 3 . . . 7 3 Device 16 | . 5 11 8 16 19 20 20 20 20 20 17 13 10 14 15 15 17 23 Storage 5 | . 14 11 9 7 6 6 6 6 6 6 5 5 5 5 5 5 4 3 Processor 10 | . . . . 5 13 13 13 13 13 13 16 20 18 15 10 10 9 9 Protection 4 | . . . 9 3 . . . . . . . . 3 5 9 10 11 5 Energy Gun 4 | . . 11 9 4 . . 3 6 6 4 . 6 5 5 3 . 3 12 Energy Cannon 3 | . . . 1 2 . . . . . 3 5 4 6 2 1 5 7 2 Ballistic Gun 7 | . 27 11 9 5 13 13 9 6 6 4 5 3 9 12 10 10 2 . Ballistic Cannon 4 | . . . . 3 6 6 6 6 6 5 5 2 . 4 10 10 5 1 Launcher 1 | . . . 6 . . . . . . . 5 2 . . . . 2 . Peak Build Rating 151 | 6 8 12 22 36 42 47 48 47 47 52 79 79 124 141 141 137 151 149 Average Rating 85 | 3 6 9 19 30 41 43 47 47 47 49 70 75 110 135 138 137 145 124 On Entrance 63 | . 6 8 12 21 36 42 47 47 47 47 52 75 79 124 136 137 137 149 Naked Turns . | . . . . . . . . . . . . . . . . . . . Heaviest Build 160 | 12 13 17 26 76 72 81 84 84 84 90 97 97 119 130 141 141 160 152 Greatest Support 160 | 20 20 40 45 50 50 50 50 50 50 50 140 89 160 160 160 160 160 90 Greatest Overweight (x) 50 | 1 . . . 3 1 1 1 1 1 2 1 1 3 . . . 50 5 Average Overweight (x) . | . . . . 1 1 1 1 1 1 1 . . . . . . . . Largest Inventory Capacity 20 | 8 8 8 8 20 20 20 20 20 20 20 20 20 20 20 20 20 20 20 Average Capacity 18 | 6 8 8 8 19 20 20 20 20 20 20 20 20 20 20 20 20 20 17 Most Carried 20 | 5 8 8 8 20 17 18 20 14 14 15 20 20 20 20 20 17 20 20 Average Carried 15 | 2 5 7 7 13 16 17 16 14 14 13 14 17 18 19 19 17 19 9 Final Capacity 20 | 8 8 8 8 20 20 20 20 20 20 20 20 20 20 20 20 20 20 5 Final Carried 20 | 4 8 7 8 18 17 18 14 14 14 13 16 20 19 20 17 17 20 3 Class Distribution -------------------- 49% | Scavenger-Gunner 35% | Scavenger-Tank 5% | Mutant 5% | Scavenger-Mutant Dominant Class ---------------- Mutant | -10/Materials Mutant | -9/Materials Scavenger-Tank | -8/Materials Scavenger-Gunner | -7/Factory Scavenger-Gunner | -6/Factory Scavenger-Gunner | -6/Waste Scavenger-Gunner | -6/Factory Scavenger-Gunner | -6/Lower Caves Scavenger-Gunner | -6/Data Miner Scavenger-Gunner | -5/Proximity Caves Scavenger-Gunner | -5/Factory Scavenger-Gunner | -5/Extension Scavenger-Gunner | -5/Cetus Scavenger-Gunner | -4/Factory Scavenger-Tank | -4/Upper Caves Scavenger-Tank | -4/Upper Caves Scavenger-Tank | -3/Research Scavenger-Gunner | -3/Testing Resources | -11 -10 -9 -8 -7 -6 -6 -6 -6 -6 -5 -5 -5 -5 -4 -4 -4 -3 -3 ----------- Run | Yrd Mat Mat Mat Fac Fac Was Fac Low Dat Pro Fac Ext Cet Fac Upp Upp Res Tes Matter Collected 6126 | 240 30 140 226 867 37 187 10 . . 120 218 550 378 1056 557 29 833 648 Remotely . | . . . . . . . . . . . . . . . . . . . Salvage Created 11251 | . 64 543 527 1671 37 . . . . 61 416 1559 594 1583 555 . 1172 2469 Parts 502 | . 7 35 30 62 . . . . . 8 20 66 28 61 14 . 54 117 Haulers Intercepted 1 | . . . 1 . . . . . . . . . . . . . . . Recyclers Shooed 13 | . 2 . 1 3 . . . . . . . 5 . . . . 2 . Parts Field Recycled . | . . . . . . . . . . . . . . . . . . . Retrieved Matter . | . . . . . . . . . . . . . . . . . . . Parts Self-Destructed 27 | . . . . . . . . . . 17 . . . . 10 . . . Prevented 1 | . . . . . . . . . . 1 . . . . . . . . Kills | -11 -10 -9 -8 -7 -6 -6 -6 -6 -6 -5 -5 -5 -5 -4 -4 -4 -3 -3 ------- Run | Yrd Mat Mat Mat Fac Fac Was Fac Low Dat Pro Fac Ext Cet Fac Upp Upp Res Tes Combat Hostiles Destroyed 160 | . 1 14 10 23 1 . . . . 4 5 10 8 22 12 . 18 32 Melee 5 | . . . . 5 . . . . . . . . . . . . . . Guns 90 | . 1 13 7 11 . . . . . 1 1 4 6 12 6 . 5 23 Cannons 43 | . . . 1 6 1 . . . . . 1 2 2 10 6 . 8 6 AOE 15 | . . 1 2 . . . . . . 3 3 3 . . . . 3 . Classes Destroyed 22 | . 2 4 3 3 . . . . . . 2 2 . 2 1 . 2 1 Worker 10 | . . . 1 1 . . . . . . . 3 . . . . 1 4 Builder 9 | . . . . 1 . . . . . . 1 4 . . . . 2 1 Tunneler 5 | . . . . 1 . . . . . . . 1 . 2 . . 1 . Hauler 1 | . . . 1 . . . . . . . . . . . . . . . Recycler 17 | . . 1 . 7 . . . . . . . 8 . . . . . 1 Operator 4 | . 1 . . . . . . . . . . . . 2 . . 1 . Watcher 15 | . . 2 . 3 . . . . . . . 2 2 4 . . 1 1 Swarmer 29 | . . 6 . . . . . . . 4 3 . . 3 3 . 5 5 Grunt 58 | . 1 7 5 14 1 . . . . . 1 3 . 4 4 . 4 14 Brawler 5 | . . . 1 2 . . . . . . . . . . 2 . . . Protector 1 | . . . . . . . . . . . 1 . . . . . . . Researcher 2 | . . . . . . . . . . . . . . . . . . 2 Sentry 18 | . . 1 4 5 . . . . . . . 2 . 3 1 . 1 1 Specialist 2 | . . . . . . . . . . . . . . 2 . . . . Hunter 12 | . . . . . . . . . . . . 3 . 2 . . 6 1 Programmer 18 | . . . . 2 . . . . . . . . . 6 . . . 10 Heavy 1 | . . . . . . . . . . . . . . 1 . . . . Behemoth 4 | . . . . . . . . . . . . 2 . 1 1 . . . Cetus Guard 8 | . . . . . . . . . . . . . 8 . . . . . Striker 2 | . . . . . . . . . . . . . . . . . 1 1 Executioner 1 | . . . . . . . . . . . . . . . . . 1 . Thug 3 | . . . . . . . . . . . 2 1 . . . . . . Butcher 1 | . . . . . . . . . . . 1 . . . . . . . Mutant 1 | . . . . . . . . . . . . . . . 1 . . . Best Kill Streak 11 | . 1 6 6 10 1 . . . . 4 3 9 5 6 7 . 5 11 Combat Bots Only 7 | . 1 3 4 4 1 . . . . 4 3 3 4 5 7 . 5 7 Max Kills in Single Turn 4 | . 1 2 3 2 1 . . . . 4 3 3 1 2 1 . 2 2 Gunslinging 1 | . . 1 . . . . . . . . . . . . . . . 1 Exploded 3 | . . 1 2 . . . . . . 3 3 2 . . . . 1 . Melee 1 | . . . . 1 . . . . . . . . . . . . . . Uniques/NPCs Destroyed 1 | . . . . . . . . . . . . . . . . . 1 . Revision 17++ (-3/Research) Combat | -11 -10 -9 -8 -7 -6 -6 -6 -6 -6 -5 -5 -5 -5 -4 -4 -4 -3 -3 -------- Run | Yrd Mat Mat Mat Fac Fac Was Fac Low Dat Pro Fac Ext Cet Fac Upp Upp Res Tes Hostile Shots Fired 1520 | . 5 64 36 208 3 . . . . 18 5 86 74 195 85 . 187 554 Missed 458 | . 1 17 4 63 2 . . . . 9 1 29 33 49 14 . 69 167 Hits 1062 | . 4 47 32 145 1 . . . . 9 4 57 41 146 71 . 118 387 Melee 20 | . . . 3 4 . . . . . . . . . . 2 . . 11 Projectile 1042 | . 4 47 29 141 1 . . . . 9 4 57 41 146 69 . 118 376 AOE 1 | . . . . 1 . . . . . . . . . . . . . . Critical Strikes 54 | . . . 4 3 . . . . . . . 4 8 4 5 . 4 22 Part Disruptions 3 | . . . . . . . . . . . . . . . . . . 3 Damage Taken 20825 | . 72 474 529 2015 20 . . . . 319 109 1397 1086 2923 1013 . 2395 8473 Core 2227 | . 18 87 67 225 . . . . . 27 30 153 167 108 45 . 223 1077 Absorbed by Shields 1069 | . . . . . . . . . . . . . . 206 380 . 483 . Reduced by Siege Mode 179 | . . . . . . . . . . . . . . 106 73 . . . Core Remaining (%) 83 | 100 92 78 87 67 . . . . . 96 . . 65 . . 86 . . Volleys Fired 435 | . 10 46 24 63 2 . . . . 6 12 33 19 60 22 . 39 99 Largest 5 | . 2 2 3 3 3 . . . . 3 3 4 4 5 5 . 5 5 Hottest 444 | . 40 68 133 153 93 . . . . 201 154 322 279 435 281 . 444 443 Shots Fired 1465 | . 20 89 59 176 6 . . . . 17 36 128 63 285 111 . 187 288 Gun 948 | . 20 89 56 115 4 . . . . 7 12 63 36 205 59 . 49 233 Cannon 484 | . . . 1 61 2 . . . . 9 24 50 27 80 52 . 123 55 Launcher 33 | . . . 2 . . . . . . 1 . 15 . . . . 15 . Special . | . . . . . . . . . . . . . . . . . . . Kinetic 727 | . 20 46 32 108 6 . . . . 9 24 44 30 194 88 . 83 43 Thermal 565 | . . 36 1 50 . . . . . 2 . 62 33 91 23 . 83 184 Explosive 18 | . . . 2 . . . . . . 1 . 15 . . . . . . Electromagnetic 155 | . . 7 24 18 . . . . . 5 12 7 . . . . 21 61 Robot Hit Streak 31 | . 7 16 9 16 6 . . . . 8 6 14 17 31 30 . 7 9 Robot Miss Streak 8 | . 2 4 2 8 3 . . . . 3 5 4 2 3 2 . 5 6 Penetration Max 1 | . . . . . . . . . . . 1 1 . 1 . . 1 1 Secondary Targets 6 | . . 2 . . . . . . . . . . . . . . . 4 Max Gunslinging Chain 1 | . . 1 . . . . . . . . . . . . . . . 1 Shots Hit Robots 957 | . 14 58 36 144 6 . . . . 14 18 76 51 192 82 . 99 167 Core Hits 542 | . 8 29 25 117 8 . . . . 9 33 61 24 64 25 . 53 86 Critical Kills 12 | . . . . 1 . . . . . . . . 4 2 3 . . 2 Critical Parts Destroyed 22 | . . . . . . . . . . . . . 2 9 4 . 3 4 Critical Strikes 70 | . . . . 5 . . . . . 1 . 3 8 17 14 . 7 15 Burn 5 | . . . . . . . . . . . . 1 1 . . . . 3 Meltdown 2 | . . . . 1 . . . . . . . . . . . . . 1 Destroy 35 | . . . . . . . . . . . . . 7 12 8 . 3 5 Blast 18 | . . . . 1 . . . . . . . 2 . 5 6 . 4 . Corrupt 7 | . . . . . . . . . . 1 . . . . . . . 6 Impale 3 | . . . . 3 . . . . . . . . . . . . . . Melee Attacks 23 | . . . . 23 . . . . . . . . . . . . . . Impact . | . . . . . . . . . . . . . . . . . . . Slashing . | . . . . . . . . . . . . . . . . . . . Piercing 23 | . . . . 23 . . . . . . . . . . . . . . Sneak Attacks 3 | . . . . 3 . . . . . . . . . . . . . . Combat Hostiles . | . . . . . . . . . . . . . . . . . . . Follow-up Attacks 3 | . . . . 3 . . . . . . . . . . . . . . Damage Inflicted 30112 | . 117 646 785 3223 140 . . . . 573 1234 3446 1430 6139 2658 . 3967 5754 Guns 16069 | . 117 606 460 1717 94 . . . . 178 163 1005 686 4377 1273 . 932 4461 Cannons 10215 | . . . 20 812 46 . . . . 242 535 1142 744 1762 1335 . 2301 1276 Explosions 3262 | . . 40 305 145 . . . . . 153 536 1299 . . 50 . 734 . Melee 537 | . . . . 537 . . . . . . . . . . . . . . Ramming 29 | . . . . 12 . . . . . . . . . . . . . 17 Kinetic 12188 | . 117 280 214 1412 140 . . . . 221 386 736 584 3777 2061 . 1538 722 Thermal 11951 | . . 326 20 1019 . . . . . 66 . 1184 846 2362 597 . 1601 3930 Explosive 1798 | . . . 305 41 . . . . . 153 . 1299 . . . . . . Electromagnetic 3609 | . . 40 246 202 . . . . . 133 848 227 . . . . 828 1085 Impact . | . . . . . . . . . . . . . . . . . . . Slashing . | . . . . . . . . . . . . . . . . . . . Piercing 537 | . . . . 537 . . . . . . . . . . . . . . Highest Corruption 35 | . 1 . 3 1 . . . . . . . . . 1 8 8 1 35 Average Corruption 7 | . 1 . 3 1 . . . . . . . . . 1 5 8 1 17 Corruption Purged 2 | . . . . 2 . . . . . . . . . . . . . . Corruption Blocked . | . . . . . . . . . . . . . . . . . . . Effects 81 | . . . 4 3 . . . . . . . . . 2 23 1 2 46 Message Errors 14 | . . . 2 . . . . . . . . . . 1 6 1 . 4 Matter Fused 17 | . . . 1 1 . . . . . . . . . . 6 . . 9 Heat Flow Errors 12 | . . . . . . . . . . . . . . . 3 . . 9 Energy Discharges 6 | . . . 1 1 . . . . . . . . . 1 1 . 1 1 Data Loss (minor) 4 | . . . . . . . . . . . . . . . 3 . . 1 Data Loss (major) 7 | . . . . . . . . . . . . . . . 1 . 1 5 Misfires 6 | . . . . 1 . . . . . . . . . . 2 . . 3 Alerts 3 | . . . . . . . . . . . . . . . . . . 3 Misdirections 2 | . . . . . . . . . . . . . . . . . . 2 Weapon Failures 10 | . . . . . . . . . . . . . . . 1 . . 9 Overload Shots 15 | . . . . . . . . . . . . . . 15 . . . . Effects 2 | . . . . . . . . . . . . . . 2 . . . . Heat Surge 2 | . . . . . . . . . . . . . . 2 . . . . Overflow Damage 441 | . . . . 154 . . . . . . 1 130 . 37 46 . 60 13 Projectiles 187 | . . . . . . . . . . . 1 35 . 37 46 . 55 13 Explosions 126 | . . . . 26 . . . . . . . 95 . . . . 5 . Melee 128 | . . . . 128 . . . . . . . . . . . . . . Knockbacks 54 | . . . . 17 . . . . . 3 5 1 . 7 4 . 9 8 Impact . | . . . . . . . . . . . . . . . . . . . Kinetic 46 | . . . . 15 . . . . . 2 4 1 . 7 4 . 7 6 Secondary 8 | . . . . 2 . . . . . 1 1 . . . . . 2 2 Self-Inflicted Damage 420 | . . . 28 149 . . . . . . 51 60 . . 70 . 61 1 Shots 12 | . . . 1 2 . . . . . . 2 2 . . 1 . 4 . Rammed 5 | . . . . . . . . . . . . . . . . . . 5 Targets Rammed 10 | . . . . 3 . . . . . . . . . . . . . 7 Kicked 5 | . . . . 3 . . . . . . . . . . . . . 2 Crushed . | . . . . . . . . . . . . . . . . . . . Highest Temperature 726 | . 18 42 193 333 . . . . . 30 . 528 652 483 484 . 726 198 Average Temperature 121 | . 10 15 69 93 . . . . . 15 . 113 309 143 163 . 156 99 Received Heat Transfer 3124 | . 36 132 234 789 9 . . . . 24 . 420 108 264 173 . 144 791 Effects 50 | . . . . 2 . . . . . . . 5 11 8 2 . 22 . Shutdowns 15 | . . . . . . . . . . . . 3 4 2 2 . 4 . Energy Bleed 1 | . . . . . . . . . . . . . . . . . 1 . Interference 13 | . . . . 2 . . . . . . . . 2 3 . . 6 . Matter Decay 6 | . . . . . . . . . . . . 1 2 2 . . 1 . Short Circuit 1 | . . . . . . . . . . . . 1 . . . . . . Damage (minor) 4 | . . . . . . . . . . . . . 2 1 . . 1 . Damage (major) 10 | . . . . . . . . . . . . . 1 . . . 9 . Siege Activations 6 | . . . . . . . . . . . . . . 3 3 . . . Total Turns 120 | . . . . . . . . . . . . . . 65 55 . . . Longest Duration 34 | . . . . . . . . . . . . . . 33 34 . . . Martial Activations . | . . . . . . . . . . . . . . . . . . . Shielding Activations . | . . . . . . . . . . . . . . . . . . . Robots Disrupted 1 | . . . . . . . . . . . . . . . . . 1 . Combat Hostiles 1 | . . . . . . . . . . . . . . . . . 1 . Robots Corrupted 3 | . . . . . . . . . . . 1 . . . . . 2 . Combat Hostiles 2 | . . . . . . . . . . . . . . . . . 2 . Parts Fried 10 | . . . . . . . . . . . 1 1 . . . . 3 5 Impact Corruptions . | . . . . . . . . . . . . . . . . . . . Robots Melted 5 | . . . . 1 . . . . . . . 1 . . . . . 3 Combat Hostiles 5 | . . . . 1 . . . . . . . 1 . . . . . 3 Parts Melted 35 | . . . . 3 . . . . . . . 6 3 5 . . 1 17 Heat Transferred 16659 | . . 650 37 2044 . . . . . 150 . 2239 1201 2648 672 . 1776 5242 Parts Sabotaged . | . . . . . . . . . . . . . . . . . . . Parts Stolen . | . . . . . . . . . . . . . . . . . . . Parts Stripped . | . . . . . . . . . . . . . . . . . . . Power Chain Reactions 2 | . . 1 . 1 . . . . . . . . . . . . . . Alert | -11 -10 -9 -8 -7 -6 -6 -6 -6 -6 -5 -5 -5 -5 -4 -4 -4 -3 -3 ------- Run | Yrd Mat Mat Mat Fac Fac Was Fac Low Dat Pro Fac Ext Cet Fac Upp Upp Res Tes Maximum Alert Level 4 | . . 1 1 1 . . . . . . 4 2 1 1 . . . 1 Low Security (%) 66 | 100 100 79 73 86 100 100 100 . . . . . 20 53 . . 100 78 Level 1 18 | . . 20 26 13 . . . . . . . . 79 46 . . . 21 Level 2 8 | . . . . . . . . . . . 33 100 . . . . . . Level 3 3 | . . . . . . . . . . . 43 . . . . . . . Level 4 1 | . . . . . . . . . . . 22 . . . . . . . Level 5 . | . . . . . . . . . . . . . . . . . . . High Security . | . . . . . . . . . . . . . . . . . . . Max Security . | . . . . . . . . . . . . . . . . . . . Peak Influence 1255 | . 35 252 230 236 112 28 60 . . . 1255 688 339 379 . . 176 244 Initial 590 | . . . 91 89 112 28 . . . . 395 590 339 90 . . 45 87 Average 216 | . 4 94 159 76 95 4 17 . . . 846 626 244 214 . . 103 149 Influence Increases 7257 | . 54 362 316 725 20 . 73 . . 1020 1326 415 187 897 230 . 680 952 Destroy 0b10 Robot/C 3980 | . 20 280 200 460 20 . 20 . . 460 440 200 160 440 220 . 380 680 Destroy 0b10 Robot/NC 345 | . 5 15 10 65 . . . . . 10 35 90 10 40 . . 30 35 Destroy Leader 710 | . 10 64 52 116 . . 10 . . 40 62 34 . 118 10 . 92 102 Allied During Kill 1021 | . . . . . . . 30 . . 510 473 . . . . . 4 4 Successful Hack 55 | . 4 . 12 5 . . . . . . 13 . 7 . . . 14 . Disable Machine 480 | . . . 15 45 . . . . . . 165 15 . 165 . . 30 45 Destroy Structure 531 | . . 3 12 19 . . 13 . . . 138 76 10 134 . . 100 26 Partial Spotted 15 | . . . . 15 . . . . . . . . . . . . . . Lose Combat Pursuer 120 | . 15 . 15 . . . . . . . . . . . . . 30 60 Influence Decreases 7178 | . 54 146 335 692 168 82 63 4 6 392 747 1015 632 688 517 17 592 1028 Entered New Map 1850 | . . . 125 108 118 54 . 4 6 . 233 617 268 72 138 17 22 68 Time Decay 4155 | . 54 146 190 494 50 28 50 . . 372 374 278 294 526 349 . 510 440 Lost Part 940 | . . . 20 90 . . . . . . . 80 70 90 30 . 60 500 Lost Ally 233 | . . . . . . . 13 . . 20 140 40 . . . . . 20 Squads Dispatched 40 | . 1 2 . 5 . . . . . . 5 . . 9 . . 8 10 Investigation 3 | . . . . . . . . . . . 1 . . . . . 1 1 Extermination 11 | . . . . 3 . . . . . . 2 . . 3 . . . 3 Reinforcement 19 | . 1 2 . 2 . . . . . . 1 . . 3 . . 7 3 Assault 1 | . . . . . . . . . . . 1 . . . . . . . Garrison 6 | . . . . . . . . . . . . . . 3 . . . 3 Intercept . | . . . . . . . . . . . . . . . . . . . Searches Triggered . | . . . . . . . . . . . . . . . . . . . Construction Impeded 3 | . . . . . . . . . . . . . . . . . 1 2 Haulers Reinforced 3 | . . . . 1 . . . . . . . . . 1 . . 1 . Active Scanning Responses . | . . . . . . . . . . . . . . . . . . . Cargo Convoy Interrupts . | . . . . . . . . . . . . . . . . . . . Stealth | -11 -10 -9 -8 -7 -6 -6 -6 -6 -6 -5 -5 -5 -5 -4 -4 -4 -3 -3 --------- Run | Yrd Mat Mat Mat Fac Fac Was Fac Low Dat Pro Fac Ext Cet Fac Upp Upp Res Tes Distress Signals 23 | . . 2 . 3 . . . . . . . 1 2 2 . . 11 2 Communications Jammed 77 | . . . . . . . . . . . 77 . . . . . . . Distress Signals 77 | . . . . . . . . . . . 77 . . . . . . . Times Spotted 247 | . 4 19 11 33 1 . 1 . . 21 15 13 10 30 12 . 25 52 Peak Tracking Total 8 | . 2 7 3 4 1 . 1 . . 6 4 4 5 5 5 . 5 8 Tactical Retreats 6 | . 1 . 1 . . . . . . . . . . . . . 1 3 Traps | -11 -10 -9 -8 -7 -6 -6 -6 -6 -6 -5 -5 -5 -5 -4 -4 -4 -3 -3 ------- Run | Yrd Mat Mat Mat Fac Fac Was Fac Low Dat Pro Fac Ext Cet Fac Upp Upp Res Tes Traps Triggered 8 | . 1 . . 1 1 . . . . . . . . . . . 3 2 Indirectly . | . . . . . . . . . . . . . . . . . . . Trap Hack Attempts . | . . . . . . . . . . . . . . . . . . . Triggered . | . . . . . . . . . . . . . . . . . . . Disarmed . | . . . . . . . . . . . . . . . . . . . Reprogrammed . | . . . . . . . . . . . . . . . . . . . Reused . | . . . . . . . . . . . . . . . . . . . Traps Extracted . | . . . . . . . . . . . . . . . . . . . Installed . | . . . . . . . . . . . . . . . . . . . Triggered . | . . . . . . . . . . . . . . . . . . . Machines | -11 -10 -9 -8 -7 -6 -6 -6 -6 -6 -5 -5 -5 -5 -4 -4 -4 -3 -3 ---------- Run | Yrd Mat Mat Mat Fac Fac Was Fac Low Dat Pro Fac Ext Cet Fac Upp Upp Res Tes Machines Disabled 38 | . . . 1 3 . . . . . 1 11 3 . 11 3 . 2 3 Max in Single Turn 2 | . . . 1 2 . . . . . . 1 1 . 2 2 . 2 1 Garrison Access 1 | . . . . . . . . . . . . . . 1 . . . . Machines Repaired . | . . . . . . . . . . . . . . . . . . . Machines Dismantled . | . . . . . . . . . . . . . . . . . . . Machines Sabotaged . | . . . . . . . . . . . . . . . . . . . Overloaded Fab Kills . | . . . . . . . . . . . . . . . . . . . Hacking | -11 -10 -9 -8 -7 -6 -6 -6 -6 -6 -5 -5 -5 -5 -4 -4 -4 -3 -3 --------- Run | Yrd Mat Mat Mat Fac Fac Was Fac Low Dat Pro Fac Ext Cet Fac Upp Upp Res Tes Machines Accessed 25 | . 2 . 2 2 . . 1 . 1 . 4 . 3 6 . . 3 1 Terminals 17 | . 1 . 1 2 . . 1 . . . 3 . 3 4 . . 1 1 Fabricators 1 | . . . . . . . . . . . 1 . . . . . . . Repair Stations . | . . . . . . . . . . . . . . . . . . . Recycling Units 2 | . 1 . . . . . . . . . . . . . . . 1 . Scanalyzers 1 | . . . 1 . . . . . . . . . . . . . . . Garrison Access 3 | . . . . . . . . . . . . . . 2 . . 1 . Total Hacks 48 | . 5 . 4 4 . . 1 . 6 . 7 . 9 8 . . 3 1 Successful 30 | . 4 . 3 3 . . 1 . 6 . 5 . 4 3 . . 1 . Failed 18 | . 1 . 1 1 . . . . . . 2 . 5 5 . . 2 1 Catastrophic 5 | . . . . . . . . . . . 1 . 1 1 . . 1 1 Database Lockouts . | . . . . . . . . . . . . . . . . . . . Manual . | . . . . . . . . . . . . . . . . . . . Terminals 31 | . 2 . 2 4 . . 1 . . . 5 . 9 6 . . 1 1 Fabricators 2 | . . . . . . . . . . . 2 . . . . . . . Repair Stations . | . . . . . . . . . . . . . . . . . . . Recycling Units 4 | . 3 . . . . . . . . . . . . . . . 1 . Scanalyzers 2 | . . . 2 . . . . . . . . . . . . . . . Garrison Access 3 | . . . . . . . . . . . . . . 2 . . 1 . Terminal Hacks 22 | . 1 . 1 3 . . 1 . 6 . 3 . 4 2 . . 1 . Record 14 | . . . 1 1 . . . . 6 . 1 . 4 1 . . . . Open DSF 3 | . . . . 1 . . . . . . 2 . . . . . . . Emergency Access Points 4 | . 1 . . . . . 1 . . . . . . 1 . . 1 . Zone Layout 1 | . . . . 1 . . . . . . . . . . . . . . Fabricator Hacks 2 | . . . . . . . . . . . 2 . . . . . . . Load Schematic 1 | . . . . . . . . . . . 1 . . . . . . . Build 1 | . . . . . . . . . . . 1 . . . . . . . Repair Station Hacks . | . . . . . . . . . . . . . . . . . . . Recycling Unit Hacks 3 | . 3 . . . . . . . . . . . . . . . . . Recycle Component 1 | . 1 . . . . . . . . . . . . . . . . . Process 1 | . 1 . . . . . . . . . . . . . . . . . Retrieve Matter 1 | . 1 . . . . . . . . . . . . . . . . . Scanalyzer 2 | . . . 2 . . . . . . . . . . . . . . . Insert Component 1 | . . . 1 . . . . . . . . . . . . . . . Analyze 1 | . . . 1 . . . . . . . . . . . . . . . Garrison Access Hacks 1 | . . . . . . . . . . . . . . 1 . . . . Seal Access 1 | . . . . . . . . . . . . . . 1 . . . . Unauthorized Hacks . | . . . . . . . . . . . . . . . . . . . Terminals . | . . . . . . . . . . . . . . . . . . . Fabricators . | . . . . . . . . . . . . . . . . . . . Repair Stations . | . . . . . . . . . . . . . . . . . . . Recycling Units . | . . . . . . . . . . . . . . . . . . . Scanalyzers . | . . . . . . . . . . . . . . . . . . . Garrison Access . | . . . . . . . . . . . . . . . . . . . Data Cores Recovered 3 | . 1 . . . . . . . . . 1 . . 1 . . . . Used . | . . . . . . . . . . . . . . . . . . . Hacking Detections 12 | . . . 1 . . . . . . . 2 . 2 4 . . 2 1 Full Trace Events 1 | . . . . . . . . . . . 1 . . . . . . . Feedback Events . | . . . . . . . . . . . . . . . . . . . Feedback Blocked . | . . . . . . . . . . . . . . . . . . . Robot Schematics Acquired . | . . . . . . . . . . . . . . . . . . . Robots Built . | . . . . . . . . . . . . . . . . . . . Authchips . | . . . . . . . . . . . . . . . . . . . Time . | . . . . . . . . . . . . . . . . . . . Total Robot Build Rating . | . . . . . . . . . . . . . . . . . . . Part Schematics Acquired 2 | . . . 1 . . . . . . . . . . . . . . 1 Parts Built 1 | . . . . . . . . . . . 1 . . . . . . . Authchips . | . . . . . . . . . . . . . . . . . . . Time 73 | . . . . . . . . . . . 73 . . . . . . . Total Part Build Rating 3 | . . . . . . . . . . . 3 . . . . . . . Parts Repaired . | . . . . . . . . . . . . . . . . . . . Time . | . . . . . . . . . . . . . . . . . . . Parts Recycled 1 | . 1 . . . . . . . . . . . . . . . . . Recycled Matter 39 | . 39 . . . . . . . . . . . . . . . . . Retrieved Matter 39 | . 39 . . . . . . . . . . . . . . . . . Retrieved Components . | . . . . . . . . . . . . . . . . . . . Parts Scanalyzed 1 | . . . 1 . . . . . . . . . . . . . . . Part Schematics Acquired 1 | . . . 1 . . . . . . . . . . . . . . . Parts Damaged . | . . . . . . . . . . . . . . . . . . . Bothacking | -11 -10 -9 -8 -7 -6 -6 -6 -6 -6 -5 -5 -5 -5 -4 -4 -4 -3 -3 ------------ Run | Yrd Mat Mat Mat Fac Fac Was Fac Low Dat Pro Fac Ext Cet Fac Upp Upp Res Tes Used RIF Installer . | . . . . . . . . . . . . . . . . . . . Robots Hacked . | . . . . . . . . . . . . . . . . . . . Non-combat . | . . . . . . . . . . . . . . . . . . . Combat . | . . . . . . . . . . . . . . . . . . . Robot Hacks Applied . | . . . . . . . . . . . . . . . . . . . Relay Couplers Released . | . . . . . . . . . . . . . . . . . . . Fabnet Peak Effective % . | . . . . . . . . . . . . . . . . . . . Robots Rewired 1 | . . . . . . . . . . . . . . . . . 1 . Allies Hacked . | . . . . . . . . . . . . . . . . . . . Hacks Repelled . | . . . . . . . . . . . . . . . . . . . Allies | -11 -10 -9 -8 -7 -6 -6 -6 -6 -6 -5 -5 -5 -5 -4 -4 -4 -3 -3 -------- Run | Yrd Mat Mat Mat Fac Fac Was Fac Low Dat Pro Fac Ext Cet Fac Upp Upp Res Tes Total Allies 22 | . . . . . . 21 . . . . . . . . . . 1 . Largest Group 21 | . . . . . . 21 21 . 20 20 18 3 . . . . 1 1 Highest-Rated Group 859 | . . . . . . 859 859 . 834 834 778 125 . . . . 64 64 Highest-Rated Ally 64 | . . . . . . 50 50 . 50 50 50 46 . . . . 64 64 Total Orders 1 | . . . . . . . . . . . . . . . . . 1 . GUARD 1 | . . . . . . . . . . . . . . . . . 1 . Ally Attacks 186 | . . . . . . . 5 . . 59 111 9 . . . . 1 1 Total Damage 6316 | . . . . . . . 78 . . 2742 3308 80 . . . . 53 55 Kills 50 | . . . . . . . 1 . . 22 26 . . . . . 1 . Allies Corrupted 4 | . . . . . . . . . . . 4 . . . . . . . Allies Melted . | . . . . . . . . . . . . . . . . . . . Intel | -11 -10 -9 -8 -7 -6 -6 -6 -6 -6 -5 -5 -5 -5 -4 -4 -4 -3 -3 ------- Run | Yrd Mat Mat Mat Fac Fac Was Fac Low Dat Pro Fac Ext Cet Fac Upp Upp Res Tes Active Infowar (turns) 4491 | . 148 312 . 519 100 245 232 3 174 1030 877 612 148 . . . . 91 Optics 1634 | . . . . . . . . . . . 876 612 146 . . . . . Terrain 460 | . 148 312 . . . . . . . . . . . . . . . . Structural 91 | . . . . . . . . . . . . . . . . . . 91 T.N.C. 519 | . . . . 519 . . . . . . . . . . . . . . Jamming 2888 | . . . . . 100 245 232 3 174 1030 877 225 2 . . . . . Robot Analysis Total . | . . . . . . . . . . . . . . . . . . . Derelict Logs Recovered . | . . . . . . . . . . . . . . . . . . . Drone Launches 4 | . . . . . . . . . . . . . . . . . 4 . Drone Recoveries 1 | . . . . . . . . . . . . . . . . . 1 . Exploration | -11 -10 -9 -8 -7 -6 -6 -6 -6 -6 -5 -5 -5 -5 -4 -4 -4 -3 -3 ------------- Run | Yrd Mat Mat Mat Fac Fac Was Fac Low Dat Pro Fac Ext Cet Fac Upp Upp Res Tes Turns Passed 12507 | 63 356 432 399 1960 103 245 232 3 174 1030 877 612 646 1467 1058 18 1733 1099 Spaces Moved 5523 | 45 226 208 215 753 41 127 85 2 82 460 330 314 319 708 558 12 695 343 Core 39 | 13 . . . . . . . . . . . . . . . . 3 23 Treads 2057 | . . . . . . . . . . . 220 . 283 708 558 12 214 62 Legs 3427 | 32 226 208 215 753 41 127 85 2 82 460 110 314 36 . . . 478 258 Wheels . | . . . . . . . . . . . . . . . . . . . Hover . | . . . . . . . . . . . . . . . . . . . Flight . | . . . . . . . . . . . . . . . . . . . Fastest Speed 50 | 50 120 120 120 190 192 192 192 192 192 192 160 120 120 160 160 160 160 50 Average Speed 175 | 106 120 120 120 191 192 192 192 192 192 212 199 145 165 160 160 160 210 196 Slowest Speed 2550 | 120 120 120 120 330 192 192 192 192 192 263 250 176 330 160 160 160 2550 300 Overloaded Moves . | . . . . . . . . . . . . . . . . . . . Propulsion Burnouts . | . . . . . . . . . . . . . . . . . . . Robots Hopped . | . . . . . . . . . . . . . . . . . . . Potential Cave-ins . | . . . . . . . . . . . . . . . . . . . Cave-ins Triggered . | . . . . . . . . . . . . . . . . . . . Exploration Rate (%) 33 | 3 55 18 20 17 2 69 2 3 70 73 13 45 77 18 85 5 21 37 Regions Visited 18 Branch Regions 8 Pre-discovered Areas 1 | . . . . . . . . . 1 . . . . . . . . . Known Exits Taken . | . . . . . . . . . . . . . . . . . . . Unknown Exits Taken 16 | 1 1 1 1 1 . . 1 1 1 1 1 1 1 1 1 1 1 . Scrap Searched 5 | . . . . . . . . . . 3 . . . . 1 1 . . Spaces Dug . | . . . . . . . . . . . . . . . . . . . Terrain Destroyed 326 | . . 3 11 18 . . . . . 20 3 65 5 86 51 . 53 11 Melee . | . . . . . . . . . . . . . . . . . . . Projectile 168 | . . . . 1 . . . . . . 3 5 5 55 36 . 52 11 AOE 158 | . . 3 11 17 . . . . . 20 . 60 . 31 15 . 1 . Terrain Rammed . | . . . . . . . . . . . . . . . . . . . Walls Destroyed . | . . . . . . . . . . . . . . . . . . . Machines Disabled . | . . . . . . . . . . . . . . . . . . . Actions | -11 -10 -9 -8 -7 -6 -6 -6 -6 -6 -5 -5 -5 -5 -4 -4 -4 -3 -3 --------- Run | Yrd Mat Mat Mat Fac Fac Was Fac Low Dat Pro Fac Ext Cet Fac Upp Upp Res Tes Total 7343 | 60 295 313 308 1101 62 128 157 2 99 500 526 384 399 887 662 11 865 584 Wait 771 | . 51 32 44 141 15 . 61 1 18 23 142 8 4 68 73 . 35 55 Move 5506 | 44 225 207 214 752 41 126 84 1 81 459 329 313 318 707 557 11 694 343 Hop . | . . . . . . . . . . . . . . . . . . . Pick Up 218 | 10 6 7 6 47 1 1 3 . . 3 18 14 18 25 3 . 28 28 Fast Attach 8 | . 1 1 3 . . . . . . . . . . . . . 1 2 Attach 143 | 6 1 1 3 25 2 . . . . 3 8 12 10 12 4 . 16 40 Detach 9 | . . . . 3 . . . . . 1 . 2 1 . . . 2 . Swap 87 | . . 7 6 31 1 1 2 . . 3 3 1 11 2 2 . 11 6 Drop 122 | . 1 12 8 19 . . 7 . . 2 14 1 18 13 1 . 22 4 Fire 435 | . 10 46 24 63 2 . . . . 6 12 33 19 60 22 . 39 99 Melee 17 | . . . . 17 . . . . . . . . . . . . . . Ram 1 | . . . . . . . . . . . . . . . . . . 1 Kick 5 | . . . . 3 . . . . . . . . . . . . . 2 Crush 4 | . . . . . . . . . . . . . . . . . . 4 Escape Stasis 10 | . . . . . . . . . . . . . . . . . 10 . Rewire 7 | . . . . . . . . . . . . . . . . . 7 . Trap . | . . . . . . . . . . . . . . . . . . . Miscellaneous . | . . . . . . . . . . . . . . . . . . . Route ------- -11/Scrapyard -10/Materials (discovered 2 exits: *Mat / [*Min]) -9/Materials -8/Materials -7/Factory -6/Factory -6/Waste -6/Factory -6/Lower Caves -6/Data Miner -5/Proximity Caves -5/Factory -5/Extension (discovered 2 exits: *Fac / *Cet) -5/Cetus (discovered 3 exits: *Fac x2 / [*Arc]) -4/Factory -4/Upper Caves -4/Upper Caves -3/Research -3/Testing History --------- Turn | Location | Event 10 | -11/Scrapyard | Discovered new exit (range 16) 64 | -11/Scrapyard | Entered Materials 161 | -10/Materials | Discovered new exit (range 16) 312 | -10/Materials | Build established: Mutant 352 | -10/Materials | Discovered new exit (range 12) 420 | -10/Materials | Entered another Materials area 420 | -9/Materials | Evolved 2 slots: Propulsion x2 801 | -9/Materials | Discovered new exit (range 11) 852 | -9/Materials | Entered another Materials area 852 | -8/Materials | Evolved 2 slots: Utility x1, Weapon x1 1024 | -8/Materials | Discovered new exit (range 10) 1251 | -8/Materials | Entered Factory 1251 | -7/Factory | Evolved 2 slots: Utility x2 1555 | -7/Factory | Lost 3 parts (1p1n1u) 1827 | -7/Factory | Build established: Scavenger-Tank 2185 | -7/Factory | Build established: Scavenger-Mutant 2212 | -7/Factory | Lost 3 parts (2p1n) 2589 | -7/Factory | Build established: Scavenger-Gunner 2900 | -7/Factory | Discovered new exit (range 17) 3051 | -7/Factory | Lost 3 parts (1n1u1w) 3211 | -7/Factory | Entered another Factory area 3211 | -6/Factory | Evolved 2 slots: Power x1, Utility x1 3314 | -6/Factory | Sucked down chute 3314 | -6/Factory | Entered Waste 3315 | -6/Waste | Met a frightened Derelict 3315 | -6/Waste | Joined by Warlord forces that had cleared the area 3521 | -6/Waste | Discovered new exit (range 11) 3559 | -6/Waste | Entered Factory 3559 | -6/Factory | Accompanied by 21 allies 3689 | -6/Factory | Discovered new exit (range 11) 3791 | -6/Factory | Entered Lower Caves 3791 | -6/Lower Caves | Accompanied by 20 allies 3792 | -6/Lower Caves | A Derelict revealed a hidden shortcut to meet someone special 3794 | -6/Lower Caves | Entered Data Miner 3794 | -6/Data Miner | Accompanied by 20 allies 3794 | -6/Data Miner | Discovered new exit (range 6) 3831 | -6/Data Miner | Met Data Miner 3889 | -6/Data Miner | Learned location of Section 7 (-2) 3889 | -6/Data Miner | Acquired the access code to Warlord's prototype stash 3904 | -6/Data Miner | Received God Mode back door access code from Data Miner 3968 | -6/Data Miner | Entered Proximity Caves 3968 | -5/Proximity Caves | Accompanied by 20 allies 4100 | -5/Proximity Caves | Spotted B-75 Beast 4428 | -5/Proximity Caves | Attracted the attention of an 0b10 checkpoint 4859 | -5/Proximity Caves | Attracted the attention of an 0b10 outpost 4946 | -5/Proximity Caves | Discovered new exit (range 7) 4998 | -5/Proximity Caves | Entered Factory 4998 | -5/Factory | Accompanied by 18 allies 4998 | -5/Factory | Evolved 2 slots: Utility x1, Weapon x1 5165 | -5/Factory | Fabricated Hvy. Armor Plating (x1) 5598 | -5/Factory | First assault squad dispatched 5705 | -5/Factory | Lost 6 allies 5838 | -5/Factory | Discovered new exit (range 18) 5875 | -5/Factory | Entered Extension 5875 | -5/Extension | Accompanied by 3 allies 5952 | -5/Extension | Lost 3 allies 6081 | -5/Extension | Spotted B-75 Beast 6103 | -5/Extension | Destroyed B-75 Beast 6109 | -5/Extension | Spotted B-75 Beast 6139 | -5/Extension | Destroyed B-75 Beast 6150 | -5/Extension | Disrupted transfer network 6168 | -5/Extension | Lost 4 parts (4w) 6267 | -5/Extension | Lost 3 parts (1p1u1w) 6449 | -5/Extension | Discovered new exit (range 18) 6449 | -5/Extension | Discovered new exit (range 18) 6487 | -5/Extension | Entered Cetus 6506 | -5/Cetus | Spotted Cetus Guard 6506 | -5/Cetus | Spotted Cetus Guard 6506 | -5/Cetus | Spotted Cetus Guard 6509 | -5/Cetus | Spotted Cetus Guard 6523 | -5/Cetus | Destroyed Cetus Guard 6531 | -5/Cetus | Destroyed Cetus Guard 6534 | -5/Cetus | Destroyed Cetus Guard 6541 | -5/Cetus | Destroyed Cetus Guard 6569 | -5/Cetus | Lost 7 parts (5n1u1w) 6832 | -5/Cetus | Discovered new exit (range 16) 6863 | -5/Cetus | Spotted Cetus Guard 6864 | -5/Cetus | Spotted Cetus Guard 6867 | -5/Cetus | Destroyed Cetus Guard 6868 | -5/Cetus | Spotted Cetus Guard 6880 | -5/Cetus | Destroyed Cetus Guard 6886 | -5/Cetus | Destroyed Cetus Guard 6887 | -5/Cetus | Spotted Cetus Guard 6893 | -5/Cetus | Destroyed Cetus Guard 6909 | -5/Cetus | Discovered new exit (range 16) 6919 | -5/Cetus | Met Revision 17 7109 | -5/Cetus | Discovered new exit (range 15) 7133 | -5/Cetus | Entered Factory 7133 | -4/Factory | Evolved 2 slots: Utility x1, Weapon x1 7226 | -4/Factory | Lost 3 parts (2u1w) 7548 | -4/Factory | Spotted B-86 Titan 7583 | -4/Factory | Destroyed B-86 Titan 7601 | -4/Factory | Lost 3 parts (1u2w) 7857 | -4/Factory | Garrison activated, responded to threat 8256 | -4/Factory | Found Prototype Launcher 8368 | -4/Factory | Build established: Scavenger-Tank 8543 | -4/Factory | Discovered new exit (range 3) 8600 | -4/Factory | Entered Upper Caves 8740 | -4/Upper Caves | Attracted the attention of an 0b10 checkpoint 8937 | -4/Upper Caves | Encountered a Warlord checkpoint 9034 | -4/Upper Caves | Spotted B-86 Titan 9054 | -4/Upper Caves | Destroyed B-86 Titan 9369 | -4/Upper Caves | Attacked by a delusional Derelict stockpiling parts 9409 | -4/Upper Caves | Identified Tesla Bomb Launcher 9533 | -4/Upper Caves | Attracted the attention of an 0b10 base 9590 | -4/Upper Caves | Destroyed 7 combat bots 9629 | -4/Upper Caves | Discovered new exit (range 13) 9658 | -4/Upper Caves | Entered another Upper Caves area 9658 | -4/Upper Caves | Discovered new exit (range 10) 9676 | -4/Upper Caves | Entered Research 9676 | -3/Research | Evolved 2 slots: Utility x2 9876 | -3/Research | Revision forces began assault on 0b10 9912 | -3/Research | Met up with Revision 17++ 10075 | -3/Research | Lost 3 allies 10255 | -3/Research | Destroyed Revision 17++ 10362 | -3/Research | Lost 4 parts (1p1u2w) 10376 | -3/Research | Research terminal network offline 11036 | -3/Research | Spotted Striker 11038 | -3/Research | Spotted Executioner 11053 | -3/Research | Destroyed Striker 11063 | -3/Research | Destroyed Executioner 11374 | -3/Research | Discovered new exit (range 14) 11409 | -3/Research | Entered Testing 11409 | -3/Testing | Accompanied by 1 ally 11555 | -3/Testing | Scanned by Researcher 11558 | -3/Testing | Garrison activated, responded to threat 11625 | -3/Testing | Destroyed 7 combat bots 11630 | -3/Testing | Lost 8 parts (1p3u4w) 11753 | -3/Testing | System corruption reached 10% 11795 | -3/Testing | Lost 6 parts (1p2u3w) 11796 | -3/Testing | Destroyed 7 combat bots 12073 | -3/Testing | Lost 9 parts (1p3u5w) 12175 | -3/Testing | Lost 5 parts (1p3u1w) 12291 | -3/Testing | Lost 3 parts (1p2w) 12322 | -3/Testing | System corruption reached 30% 12403 | -3/Testing | Core integrity fell below 50% 12437 | -3/Testing | Spotted Striker 12437 | -3/Testing | Spotted Striker 12445 | -3/Testing | Lost 8 parts (1p2u5w) 12446 | -3/Testing | Spotted Alpha 7 12463 | -3/Testing | Stole the SGEMP Prototype 12481 | -3/Testing | Core integrity fell below 20% 12482 | -3/Testing | Destroyed Striker 12508 | -3/Testing | Destroyed by Alpha 7 with Multirail Last Messages --------------- Hyp. Railgun destroyed. Adv. Heat Sink destroyed. Acquired Prototype Device. Identified Exp. Reaction Control System. Penetrated by Slug. Slug penetrates Wall. Acquired Prototype Protection. Exp. Reaction Control System destroyed. Identified Centrium Light Armor Plating. Slammed into Alpha 7. Slug penetrates Alpha 7. Acquired 60 matter. Penetrated by Slug. Exp. Coolant Injector destroyed. Slug penetrates Wall. System corrupted: Matter fused (-7). Slug penetrates Vacuum Chamber. Penetrated by Slug. [Achievement: 10k Club] [Achievement: 20k Club] Map ----- +----------------------------------------------------+ | | | | | | | | | ???????????????????????????? | | ???????????????????????????? | | ???????????????????????????? | | ?????????????????????????### | | ?????????????????????????# | | ?????????????????????????#"" | | ???############??????????#"" | | ???############??????????#"" | | ???##""""""""##??????????# | | ???##" """""##??????????# | | ??###" = "##??????????# ! | | ??### ""##??????????# | | ??## """#### ####???# | | ??## ""###########?### | | ??#####//###### ##??? | | ??##### ###### ] "" ##??? | | ????##% %##?## "" ##??# | | ????### ###?## "" ##??# | | ####### ###?## S ##??# | | ####### ##??## "" ##??# | | # %7 # ##?? # ! "" ##??# | | # K@ # ## # =%""=##??# | | # """h# ## # !%! %=# ### | | # """ # ##########+##+##### | | # """ + [% | | # # ==%* | | # # ############+####+# | | # """ # # # #= | | # "R # # ??????????? # " | | # """ # # ??????????? # " | | # "" # # ????????????= # " | | # # # ???????????? # | | ####### + ?????????????*# | | ########## ????????????? ### | | ?????##### ????????????? ##? | | ???????????????????????? ##? | | ???????????????????????????? | | ???????????????????????????? | | ???????????????????????????? | | ???????????????????????????? | | ???????????????????????????? | | ???????????????????????????? | | ???????????????????????????? | | ???????????????????????????? | | ???????????????????????????? | | ???????????????????????????? | +----------------------------------------------------+ Best States ------------- Heat Dissipation 122 Coolant Potential 220 Energy Generation 45 Energy Capacity 600 Matter Stores 300 Matter Capacity 300 Sight Range 18 Terrain Scan Range 14 Terrain Scan Density 10 Jamming Range 12 Armor Coverage 1050 Weapon Cycling 20 Phase Shifting 10 Evasion (%) 70 Targeting Accuracy 21 Target Analysis 8 Recoil Reduction 4 Kinecelleration 30 Item Schematics ----------------- Hvy. Armor Plating | -8/Materials | Scanalyzed Adv. Plasma Rifle | -3/Testing | Archive Robot Schematics ------------------ None Fabricated ------------ Hvy. Armor Plating | x1 | -5/Factory Repaired ---------- Nothing Alien Tech Used ----------------- None Achievements -------------- 10k Club 20k Club A New Friend Backstab Collateral Damage Dangerous Findings I'm Back, Baby! Leap Before You Look Left-hand Path More Dakka Please Overkill Respectable Loadout Revising The Future Revolutionary Research Rockin' Loadout Tank The More The Merrier The Oracle Total Silence Troublemaker We Are Legion Challenges ------------ None Game ------ Seed AluminumHeavyPenetrator Manual? 0 Play Time 03:04:18 Cumulative 13.6 hours Start 2025.06.27 @ 16:03:18 End 2025.06.27 @ 19:32:22 Sessions 1 Manual Loads 0 Difficulty Rogue Special Mode None Game No. 15 Rogue 15 Adventurer 0 Explorer 0 Win Type - Total 0 Types 0/0/0/0/0/0/0/0/0/0 Lore% 9 Gallery% 19 Achievement% 19 Wizard Run 0 Options --------- Layout 1 ASCII 0 Keyboard 0 Movement Mouse Keybinds 0 Fullscreen 1 Font 48/Smallcaps Map View 50x35 Zoom Use 0% Tactical HUD 0 Map Filters NONE Filters NONE Steam 1 RUN: ce67846c-22ba-4952-8893-994c61d959f9